[Event "Titled Tuesday Blitz May 9 Early 2023"]
[White "Kamsky, Gata"]
[Black "Prohaszka, Peter"]
[WhiteFideId "2000024"]
[BlackFideId "726265"]
[WhiteElo "2660"]
[BlackElo "2626"]
[Result "1-0"]
[Round "04"]
[TimeControl "180+2"]
[Date "2023.05.09"]
[WhiteClock "0:00:36"]
[BlackClock "0:00:00"]

1. e4 {[%clk 0:03:00]}  c6 {[%clk 0:02:56]} 2. d3 {[%clk 0:02:54]}  d5 {[%clk 0:02:57]} 3. Nf3 {[%clk 0:02:54]}  dxe4 {[%clk 0:02:56]} 4. dxe4 {[%clk 0:02:54]}  Qxd1+ {[%clk 0:02:57]} 5. Kxd1 {[%clk 0:02:53]}  Nf6 {[%clk 0:02:58]} 6. Nfd2 {[%clk 0:02:53]}  g6 {[%clk 0:02:51]} 7. a4 {[%clk 0:02:53]}  Bh6 {[%clk 0:02:45]} 8. f3 {[%clk 0:02:38]}  Be6 {[%clk 0:02:42]} 9. Bc4 {[%clk 0:02:34]}  Bxc4 {[%clk 0:02:25]} 10. Nxc4 {[%clk 0:02:33]}  Bxc1 {[%clk 0:02:26]} 11. Kxc1 {[%clk 0:02:34]}  Nbd7 {[%clk 0:02:26]} 12. Kd2 {[%clk 0:02:32]}  O-O-O {[%clk 0:02:25]} 13. Ke3 {[%clk 0:02:32]}  Kc7 {[%clk 0:01:55]} 14. a5 {[%clk 0:02:22]}  Ne8 {[%clk 0:01:56]} 15. Nbd2 {[%clk 0:02:16]}  Nd6 {[%clk 0:01:55]} 16. h4 {[%clk 0:02:09]}  h6 {[%clk 0:01:46]} 17. Rhd1 {[%clk 0:02:08]}  Rhf8 {[%clk 0:01:39]} 18. Ke2 {[%clk 0:01:30]}  f5 {[%clk 0:01:29]} 19. e5 {[%clk 0:01:28]}  Nxc4 {[%clk 0:01:29]} 20. Nxc4 {[%clk 0:01:28]}  Nc5 {[%clk 0:01:29]} 21. g3 {[%clk 0:01:14]}  Ne6 {[%clk 0:01:21]} 22. c3 {[%clk 0:01:13]}  g5 {[%clk 0:01:05]} 23. hxg5 {[%clk 0:01:09]}  hxg5 {[%clk 0:01:06]} 24. Rxd8 {[%clk 0:01:09]}  Rxd8 {[%clk 0:00:54]} 25. Rh1 {[%clk 0:01:10]}  Rd5 {[%clk 0:00:41]} 26. Rh7 {[%clk 0:01:09]}  Kd7 {[%clk 0:00:41]} 27. Rh8 {[%clk 0:00:59]}  f4 {[%clk 0:00:39]} 28. g4 {[%clk 0:00:58]}  Rc5 {[%clk 0:00:21]} 29. Kd3 {[%clk 0:00:58]}  Rd5+ {[%clk 0:00:21]} 30. Kc2 {[%clk 0:00:58]}  Rc5 {[%clk 0:00:21]} 31. b3 {[%clk 0:00:58]}  Rb5 {[%clk 0:00:04]} 32. Ra8 {[%clk 0:00:56]}  Nc5 {[%clk 0:00:02]} 33. b4 {[%clk 0:00:54]}  Ne6 {[%clk 0:00:03]} 34. Rxa7 {[%clk 0:00:53]}  Nc7 {[%clk 0:00:03]} 35. Nb6+ {[%clk 0:00:51]}  Ke6 {[%clk 0:00:03]} 36. Rxb7 {[%clk 0:00:51]}  Na6 {[%clk 0:00:02]} 37. Ra7 {[%clk 0:00:49]}  Nxb4+ {[%clk 0:00:01]} 38. cxb4 {[%clk 0:00:49]}  Rxb4 {[%clk 0:00:02]} 39. Kc3 {[%clk 0:00:48]}  Rb1 {[%clk 0:00:02]} 40. Nc4 {[%clk 0:00:48]}  Kd5 {[%clk 0:00:01]} 41. a6 {[%clk 0:00:42]}  Rc1+ {[%clk 0:00:01]} 42. Kb3 {[%clk 0:00:42]}  Rb1+ {[%clk 0:00:00]} 43. Nb2 {[%clk 0:00:36]} 1-0


[Site "https://www.chess.com"]

[Event "Titled Tuesday Blitz May 9 Early 2023"]
[White "Galchenko, Matvey"]
[Black "Tisaj, Domen"]
[WhiteFideId "24175480"]
[BlackFideId "14628708"]
[WhiteElo "2423"]
[BlackElo "2340"]
[Result "1-0"]
[Round "04"]
[TimeControl "180+2"]
[Date "2023.05.09"]
[WhiteClock "0:00:03"]
[BlackClock "0:00:05"]

1. f4 {[%clk 0:03:00]}  d5 {[%clk 0:02:59]} 2. Nf3 {[%clk 0:02:59]}  Nf6 {[%clk 0:03:00]} 3. g3 {[%clk 0:02:59]}  c6 {[%clk 0:02:59]} 4. Bg2 {[%clk 0:03:00]}  Qb6 {[%clk 0:03:00]} 5. d4 {[%clk 0:03:00]}  g6 {[%clk 0:03:00]} 6. O-O {[%clk 0:03:01]}  Bg7 {[%clk 0:03:01]} 7. c4 {[%clk 0:03:02]}  O-O {[%clk 0:02:59]} 8. Nc3 {[%clk 0:03:02]}  Bf5 {[%clk 0:02:55]} 9. Ne5 {[%clk 0:02:58]}  Ne4 {[%clk 0:02:29]} 10. cxd5 {[%clk 0:02:46]}  Nxc3 {[%clk 0:02:29]} 11. bxc3 {[%clk 0:02:47]}  cxd5 {[%clk 0:02:29]} 12. Bxd5 {[%clk 0:02:43]}  Nc6 {[%clk 0:02:27]} 13. e3 {[%clk 0:02:39]}  Rac8 {[%clk 0:02:25]} 14. Nxc6 {[%clk 0:02:21]}  bxc6 {[%clk 0:02:26]} 15. Bg2 {[%clk 0:02:19]}  c5 {[%clk 0:02:25]} 16. Qb3 {[%clk 0:01:39]}  Qa5 {[%clk 0:02:10]} 17. Qa3 {[%clk 0:01:09]}  Qc7 {[%clk 0:02:01]} 18. e4 {[%clk 0:01:04]}  Bg4 {[%clk 0:01:53]} 19. e5 {[%clk 0:01:03]}  f6 {[%clk 0:01:22]} 20. Be3 {[%clk 0:00:49]}  Rfd8 {[%clk 0:01:11]} 21. Rfe1 {[%clk 0:00:41]}  Bf5 {[%clk 0:01:07]} 22. Rac1 {[%clk 0:00:33]}  h5 {[%clk 0:01:06]} 23. exf6 {[%clk 0:00:21]}  Bxf6 {[%clk 0:01:05]} 24. Qxc5 {[%clk 0:00:21]}  Qxc5 {[%clk 0:00:57]} 25. dxc5 {[%clk 0:00:22]}  Rd3 {[%clk 0:00:58]} 26. Bf2 {[%clk 0:00:19]}  Rc7 {[%clk 0:00:52]} 27. c4 {[%clk 0:00:17]}  Ra3 {[%clk 0:00:50]} 28. Re2 {[%clk 0:00:17]}  Kf7 {[%clk 0:00:38]} 29. Bd5+ {[%clk 0:00:18]}  e6 {[%clk 0:00:39]} 30. Bg2 {[%clk 0:00:18]}  Be7 {[%clk 0:00:39]} 31. c6 {[%clk 0:00:18]}  Rd3 {[%clk 0:00:32]} 32. Rb2 {[%clk 0:00:15]}  Ba3 {[%clk 0:00:15]} 33. Rb7 {[%clk 0:00:15]}  Bxc1 {[%clk 0:00:15]} 34. Rxc7+ {[%clk 0:00:15]}  Kf6 {[%clk 0:00:16]} 35. Rd7 {[%clk 0:00:09]}  Rxd7 {[%clk 0:00:08]} 36. cxd7 {[%clk 0:00:09]}  Ke7 {[%clk 0:00:08]} 37. Bc6 {[%clk 0:00:09]}  Ba3 {[%clk 0:00:05]} 38. Bxa7 {[%clk 0:00:09]}  e5 {[%clk 0:00:05]} 39. fxe5 {[%clk 0:00:04]}  Kd8 {[%clk 0:00:05]} 40. Bb6+ {[%clk 0:00:03]} 1-0


[Site "https://www.chess.com"]

[Event "Titled Tuesday Blitz May 9 Early 2023"]
[White "Gharibyan, Mamikon"]
[Black "Simonian, Hrair"]
[WhiteFideId "13308300"]
[BlackFideId "13302337"]
[WhiteElo "2445"]
[BlackElo "2447"]
[Result "0-1"]
[Round "04"]
[TimeControl "180+2"]
[Date "2023.05.09"]
[WhiteClock "0:00:00"]
[BlackClock "0:00:21"]

1. Nf3 {[%clk 0:02:59]}  Nf6 {[%clk 0:02:59]} 2. g3 {[%clk 0:03:00]}  d5 {[%clk 0:02:56]} 3. Bg2 {[%clk 0:02:59]}  e6 {[%clk 0:02:55]} 4. O-O {[%clk 0:02:58]}  Be7 {[%clk 0:02:55]} 5. d4 {[%clk 0:02:58]}  O-O {[%clk 0:02:54]} 6. a3 {[%clk 0:02:58]}  b6 {[%clk 0:02:48]} 7. c4 {[%clk 0:02:58]}  Bb7 {[%clk 0:02:48]} 8. cxd5 {[%clk 0:02:57]}  exd5 {[%clk 0:02:45]} 9. Nc3 {[%clk 0:02:57]}  Nbd7 {[%clk 0:02:44]} 10. Bf4 {[%clk 0:02:56]}  c6 {[%clk 0:02:44]} 11. b4 {[%clk 0:02:54]}  Re8 {[%clk 0:02:41]} 12. Qb3 {[%clk 0:02:54]}  Nf8 {[%clk 0:02:41]} 13. Be5 {[%clk 0:02:46]}  Ne6 {[%clk 0:02:41]} 14. Rfd1 {[%clk 0:02:43]}  a5 {[%clk 0:02:28]} 15. Rac1 {[%clk 0:02:38]}  axb4 {[%clk 0:02:27]} 16. axb4 {[%clk 0:02:39]}  b5 {[%clk 0:02:18]} 17. Bxf6 {[%clk 0:02:26]}  Bxf6 {[%clk 0:02:17]} 18. e4 {[%clk 0:02:26]}  Qb6 {[%clk 0:01:32]} 19. e5 {[%clk 0:01:53]}  Be7 {[%clk 0:01:32]} 20. h4 {[%clk 0:01:53]}  Ra7 {[%clk 0:01:25]} 21. Bh3 {[%clk 0:01:37]}  Bc8 {[%clk 0:01:25]} 22. Kg2 {[%clk 0:01:24]}  Bd7 {[%clk 0:01:21]} 23. h5 {[%clk 0:01:24]}  h6 {[%clk 0:01:19]} 24. Qb1 {[%clk 0:01:01]}  Rea8 {[%clk 0:01:18]} 25. Bf5 {[%clk 0:01:01]}  Ra1 {[%clk 0:00:59]} 26. Qd3 {[%clk 0:00:24]}  Rxc1 {[%clk 0:00:57]} 27. Rxc1 {[%clk 0:00:25]}  Bxb4 {[%clk 0:00:56]} 28. Ne2 {[%clk 0:00:23]}  Ra3 {[%clk 0:00:55]} 29. Qb1 {[%clk 0:00:21]}  Be7 {[%clk 0:00:49]} 30. Bh7+ {[%clk 0:00:10]}  Kh8 {[%clk 0:00:49]} 31. Bf5 {[%clk 0:00:11]}  b4 {[%clk 0:00:48]} 32. Bxe6 {[%clk 0:00:08]}  Bxe6 {[%clk 0:00:47]} 33. Nf4 {[%clk 0:00:08]}  Bg4 {[%clk 0:00:42]} 34. Nh2 {[%clk 0:00:07]}  Bd7 {[%clk 0:00:35]} 35. e6 {[%clk 0:00:07]}  Bxe6 {[%clk 0:00:35]} 36. Nxe6 {[%clk 0:00:07]}  fxe6 {[%clk 0:00:36]} 37. Qg6 {[%clk 0:00:07]}  Ra8 {[%clk 0:00:26]} 38. Ng4 {[%clk 0:00:06]}  Qxd4 {[%clk 0:00:23]} 39. Qxe6 {[%clk 0:00:03]}  Qe4+ {[%clk 0:00:22]} 40. Qxe4 {[%clk 0:00:03]}  dxe4 {[%clk 0:00:23]} 41. Rxc6 {[%clk 0:00:02]}  Rb8 {[%clk 0:00:24]} 42. Ne3 {[%clk 0:00:01]}  b3 {[%clk 0:00:24]} 43. Nd1 {[%clk 0:00:02]}  b2 {[%clk 0:00:23]} 44. Nxb2 {[%clk 0:00:02]}  Rxb2 {[%clk 0:00:24]} 45. Re6 {[%clk 0:00:03]}  Bc5 {[%clk 0:00:24]} 46. Rxe4 {[%clk 0:00:03]}  Rxf2+ {[%clk 0:00:24]} 47. Kh3 {[%clk 0:00:03]}  Rf5 {[%clk 0:00:24]} 48. Kg4 {[%clk 0:00:03]}  Rg5+ {[%clk 0:00:23]} 49. Kh4 {[%clk 0:00:04]}  Bf2 {[%clk 0:00:22]} 50. Re8+ {[%clk 0:00:02]}  Kh7 {[%clk 0:00:22]} 51. Kh3 {[%clk 0:00:03]}  Rxg3+ {[%clk 0:00:21]} 52. Kh2 {[%clk 0:00:00]}  Rg5 {[%clk 0:00:21]} 0-1


[Site "https://www.chess.com"]

[Event "Titled Tuesday Blitz May 9 Early 2023"]
[White "Smith, Shreyas"]
[Black "Seo, Jung Min"]
[WhiteFideId "7400713"]
[BlackFideId "1734687"]
[WhiteElo "2151"]
[BlackElo "2468"]
[Result "0-1"]
[Round "04"]
[TimeControl "180+2"]
[Date "2023.05.09"]
[WhiteClock "0:00:09"]
[BlackClock "0:01:44"]

1. e4 {[%clk 0:03:00]}  d6 {[%clk 0:02:58]} 2. d4 {[%clk 0:03:00]}  Nf6 {[%clk 0:02:59]} 3. Nc3 {[%clk 0:03:00]}  g6 {[%clk 0:02:59]} 4. f4 {[%clk 0:03:00]}  Bg7 {[%clk 0:02:59]} 5. Nf3 {[%clk 0:03:01]}  O-O {[%clk 0:02:58]} 6. Bd3 {[%clk 0:03:02]}  Na6 {[%clk 0:02:57]} 7. O-O {[%clk 0:03:00]}  c5 {[%clk 0:02:56]} 8. dxc5 {[%clk 0:02:46]}  Nxc5 {[%clk 0:02:56]} 9. h3 {[%clk 0:02:42]}  Bd7 {[%clk 0:02:53]} 10. Be3 {[%clk 0:02:40]}  Rc8 {[%clk 0:02:53]} 11. Qe2 {[%clk 0:02:35]}  a6 {[%clk 0:02:51]} 12. a4 {[%clk 0:02:33]}  Qa5 {[%clk 0:02:49]} 13. e5 {[%clk 0:02:16]}  dxe5 {[%clk 0:02:40]} 14. fxe5 {[%clk 0:02:17]}  Nh5 {[%clk 0:02:36]} 15. Qf2 {[%clk 0:02:16]}  Nxd3 {[%clk 0:02:21]} 16. cxd3 {[%clk 0:02:16]}  f5 {[%clk 0:02:22]} 17. Bb6 {[%clk 0:02:00]}  Qb4 {[%clk 0:02:20]} 18. Nd5 {[%clk 0:02:00]}  Qb3 {[%clk 0:02:16]} 19. Nxe7+ {[%clk 0:01:56]}  Kh8 {[%clk 0:02:16]} 20. Nxc8 {[%clk 0:01:56]}  Rxc8 {[%clk 0:02:16]} 21. Rfc1 {[%clk 0:01:52]}  Re8 {[%clk 0:02:15]} 22. Rc3 {[%clk 0:01:47]}  Qd5 {[%clk 0:02:15]} 23. Qd4 {[%clk 0:01:43]}  Qe6 {[%clk 0:02:07]} 24. Rc7 {[%clk 0:01:38]}  Bc6 {[%clk 0:02:07]} 25. Ng5 {[%clk 0:01:23]}  Qb3 {[%clk 0:02:00]} 26. Qc4 {[%clk 0:01:10]}  Qxb6+ {[%clk 0:01:58]} 27. d4 {[%clk 0:01:02]}  Qxc7 {[%clk 0:01:55]} 28. Nf7+ {[%clk 0:01:01]}  Kg8 {[%clk 0:01:55]} 29. Nd6+ {[%clk 0:00:48]}  Kf8 {[%clk 0:01:55]} 30. Nxe8 {[%clk 0:00:46]}  Kxe8 {[%clk 0:01:55]} 31. d5 {[%clk 0:00:17]}  Qb6+ {[%clk 0:01:55]} 32. Kh1 {[%clk 0:00:16]}  Ng3+ {[%clk 0:01:53]} 33. Kh2 {[%clk 0:00:15]}  Bxe5 {[%clk 0:01:53]} 34. Re1 {[%clk 0:00:13]}  Ne4+ {[%clk 0:01:52]} 35. Kh1 {[%clk 0:00:12]}  Nf2+ {[%clk 0:01:46]} 36. Kg1 {[%clk 0:00:11]}  Nxh3+ {[%clk 0:01:46]} 37. Kh1 {[%clk 0:00:10]}  Qg1+ {[%clk 0:01:43]} 38. Rxg1 {[%clk 0:00:09]}  Nf2# {[%clk 0:01:44]} 0-1


[Site "https://www.chess.com"]

[Event "Titled Tuesday Blitz May 9 Early 2023"]
[White "Nikologorskiy, Konstantin"]
[Black "Kollars, Dmitrij"]
[WhiteFideId "24111708"]
[BlackFideId "12909572"]
[WhiteElo "2273"]
[BlackElo "2584"]
[Result "0-1"]
[Round "04"]
[TimeControl "180+2"]
[Date "2023.05.09"]
[WhiteClock "0:02:02"]
[BlackClock "0:02:46"]

1. d4 {[%clk 0:03:00]}  Nf6 {[%clk 0:02:58]} 2. c4 {[%clk 0:03:01]}  g6 {[%clk 0:02:58]} 3. Nc3 {[%clk 0:03:01]}  Bg7 {[%clk 0:02:58]} 4. Nf3 {[%clk 0:03:01]}  O-O {[%clk 0:02:59]} 5. e4 {[%clk 0:03:01]}  d6 {[%clk 0:02:59]} 6. Be2 {[%clk 0:03:02]}  e5 {[%clk 0:02:59]} 7. O-O {[%clk 0:03:03]}  exd4 {[%clk 0:02:59]} 8. Nxd4 {[%clk 0:03:02]}  Re8 {[%clk 0:03:00]} 9. f3 {[%clk 0:03:02]}  c6 {[%clk 0:03:01]} 10. Kh1 {[%clk 0:02:58]}  Nbd7 {[%clk 0:03:01]} 11. Bg5 {[%clk 0:02:51]}  Qb6 {[%clk 0:03:00]} 12. Nb3 {[%clk 0:02:43]}  a5 {[%clk 0:03:00]} 13. Na4 {[%clk 0:02:26]}  Qb4 {[%clk 0:02:54]} 14. Nc1 {[%clk 0:02:14]}  Nc5 {[%clk 0:02:46]} 15. Nxc5 {[%clk 0:02:06]}  Qxc5 {[%clk 0:02:47]} 16. Nb3 {[%clk 0:02:02]}  Qxg5 {[%clk 0:02:46]} 0-1


[Site "https://www.chess.com"]

[Event "Titled Tuesday Blitz May 9 Early 2023"]
[White "Tang, Andrew"]
[Black "Hnydiuk, Aleksander"]
[WhiteFideId "2059630"]
[BlackFideId "1109057"]
[WhiteElo "2596"]
[BlackElo "2374"]
[Result "1-0"]
[Round "04"]
[TimeControl "180+2"]
[Date "2023.05.09"]
[WhiteClock "0:00:08"]
[BlackClock "0:00:00"]

1. d4 {[%clk 0:02:59]}  Nf6 {[%clk 0:02:59]} 2. c4 {[%clk 0:02:58]}  c5 {[%clk 0:02:59]} 3. d5 {[%clk 0:02:59]}  b5 {[%clk 0:03:00]} 4. cxb5 {[%clk 0:02:59]}  a6 {[%clk 0:03:00]} 5. e3 {[%clk 0:03:00]}  axb5 {[%clk 0:02:58]} 6. Bxb5 {[%clk 0:03:01]}  Qa5+ {[%clk 0:02:58]} 7. Nc3 {[%clk 0:03:01]}  Bb7 {[%clk 0:02:58]} 8. Bd2 {[%clk 0:03:01]}  Qb6 {[%clk 0:02:58]} 9. Nf3 {[%clk 0:03:01]}  Nxd5 {[%clk 0:02:57]} 10. a4 {[%clk 0:03:01]}  e6 {[%clk 0:02:51]} 11. Nxd5 {[%clk 0:02:49]}  Bxd5 {[%clk 0:02:50]} 12. Bc3 {[%clk 0:02:49]}  Be7 {[%clk 0:02:49]} 13. O-O {[%clk 0:02:08]}  O-O {[%clk 0:02:48]} 14. Ne5 {[%clk 0:02:07]}  d6 {[%clk 0:02:36]} 15. Nc4 {[%clk 0:02:06]}  Bxc4 {[%clk 0:02:10]} 16. Bxc4 {[%clk 0:02:07]}  Nd7 {[%clk 0:02:08]} 17. Bb5 {[%clk 0:02:06]}  Rfd8 {[%clk 0:02:03]} 18. Qf3 {[%clk 0:01:54]}  d5 {[%clk 0:01:51]} 19. e4 {[%clk 0:01:47]}  d4 {[%clk 0:01:36]} 20. Bd2 {[%clk 0:01:41]}  c4 {[%clk 0:01:33]} 21. Rfc1 {[%clk 0:01:38]}  Rac8 {[%clk 0:01:25]} 22. Bf4 {[%clk 0:01:29]}  e5 {[%clk 0:00:47]} 23. Bd2 {[%clk 0:01:27]}  Qe6 {[%clk 0:00:46]} 24. a5 {[%clk 0:01:22]}  Rc5 {[%clk 0:00:45]} 25. Ba4 {[%clk 0:01:15]}  Ra8 {[%clk 0:00:37]} 26. h3 {[%clk 0:01:01]}  Rc7 {[%clk 0:00:33]} 27. Qe2 {[%clk 0:00:53]}  h6 {[%clk 0:00:31]} 28. Bb5 {[%clk 0:00:51]}  Rac8 {[%clk 0:00:26]} 29. a6 {[%clk 0:00:45]}  d3 {[%clk 0:00:26]} 30. Qd1 {[%clk 0:00:45]}  Qb6 {[%clk 0:00:20]} 31. Qa4 {[%clk 0:00:45]}  Nc5 {[%clk 0:00:16]} 32. Qxc4 {[%clk 0:00:44]}  Nxa6 {[%clk 0:00:16]} 33. Qxd3 {[%clk 0:00:37]}  Rxc1+ {[%clk 0:00:16]} 34. Rxc1 {[%clk 0:00:26]}  Rxc1+ {[%clk 0:00:16]} 35. Bxc1 {[%clk 0:00:26]}  Nc5 {[%clk 0:00:16]} 36. Qc4 {[%clk 0:00:21]}  Nxe4 {[%clk 0:00:16]} 37. Be3 {[%clk 0:00:20]}  Qb8 {[%clk 0:00:14]} 38. Qd5 {[%clk 0:00:15]}  Nd6 {[%clk 0:00:13]} 39. Qxe5 {[%clk 0:00:09]}  Qxb5 {[%clk 0:00:12]} 40. Qxe7 {[%clk 0:00:10]}  Nf5 {[%clk 0:00:11]} 41. Qd8+ {[%clk 0:00:09]}  Kh7 {[%clk 0:00:11]} 42. Qd2 {[%clk 0:00:09]}  Nxe3 {[%clk 0:00:10]} 43. fxe3 {[%clk 0:00:09]}  Qb3 {[%clk 0:00:10]} 44. Qc3 {[%clk 0:00:08]}  Qd1+ {[%clk 0:00:10]} 45. Kf2 {[%clk 0:00:09]}  f5 {[%clk 0:00:09]} 46. b4 {[%clk 0:00:09]}  Qd5 {[%clk 0:00:08]} 47. Qc5 {[%clk 0:00:09]}  Qa2+ {[%clk 0:00:08]} 48. Kg3 {[%clk 0:00:08]}  Qa3 {[%clk 0:00:06]} 49. Qxf5+ {[%clk 0:00:07]}  Kh8 {[%clk 0:00:06]} 50. Qc5 {[%clk 0:00:08]}  Kh7 {[%clk 0:00:05]} 51. Qd4 {[%clk 0:00:08]}  Kh8 {[%clk 0:00:05]} 52. b5 {[%clk 0:00:08]}  Qe7 {[%clk 0:00:05]} 53. b6 {[%clk 0:00:08]}  Qg5+ {[%clk 0:00:00]} 54. Kh2 {[%clk 0:00:08]} 1-0


[Site "https://www.chess.com"]

[Event "Titled Tuesday Blitz May 9 Early 2023"]
[White "SashaKuzhilniy"]
[Black "Ter-Sahakyan, Samvel"]
[BlackFideId "13302531"]
[WhiteElo "2577"]
[BlackElo "2545"]
[Result "0-1"]
[Round "04"]
[TimeControl "180+2"]
[Date "2023.05.09"]
[WhiteClock "0:00:02"]
[BlackClock "0:00:07"]

1. b3 {[%clk 0:03:00]}  d5 {[%clk 0:02:57]} 2. Bb2 {[%clk 0:03:01]}  Bf5 {[%clk 0:02:57]} 3. d3 {[%clk 0:03:01]}  e6 {[%clk 0:02:56]} 4. Nd2 {[%clk 0:03:01]}  Nf6 {[%clk 0:02:56]} 5. g3 {[%clk 0:03:01]}  h6 {[%clk 0:02:56]} 6. Bg2 {[%clk 0:03:02]}  c6 {[%clk 0:02:57]} 7. e4 {[%clk 0:03:01]}  Bh7 {[%clk 0:02:56]} 8. Qe2 {[%clk 0:03:00]}  Be7 {[%clk 0:02:56]} 9. f4 {[%clk 0:02:55]}  a5 {[%clk 0:02:54]} 10. a4 {[%clk 0:02:50]}  Na6 {[%clk 0:02:54]} 11. Ngf3 {[%clk 0:02:44]}  Nb4 {[%clk 0:02:55]} 12. Rc1 {[%clk 0:02:44]}  O-O {[%clk 0:02:47]} 13. O-O {[%clk 0:02:41]}  b5 {[%clk 0:02:43]} 14. c3 {[%clk 0:02:09]}  Na6 {[%clk 0:02:41]} 15. e5 {[%clk 0:02:06]}  Nd7 {[%clk 0:02:40]} 16. d4 {[%clk 0:02:05]}  bxa4 {[%clk 0:02:31]} 17. bxa4 {[%clk 0:02:06]}  Nb6 {[%clk 0:02:19]} 18. Ra1 {[%clk 0:02:05]}  c5 {[%clk 0:02:17]} 19. g4 {[%clk 0:01:55]}  cxd4 {[%clk 0:02:10]} 20. cxd4 {[%clk 0:01:55]}  Nb4 {[%clk 0:02:08]} 21. Ne1 {[%clk 0:01:49]}  Qd7 {[%clk 0:01:56]} 22. f5 {[%clk 0:01:31]}  exf5 {[%clk 0:01:55]} 23. gxf5 {[%clk 0:01:16]}  Bxf5 {[%clk 0:01:55]} 24. Nb3 {[%clk 0:01:03]}  Nc4 {[%clk 0:01:40]} 25. Bc3 {[%clk 0:00:58]}  Rac8 {[%clk 0:01:40]} 26. Bxb4 {[%clk 0:00:48]}  Bxb4 {[%clk 0:01:36]} 27. Nd3 {[%clk 0:00:44]}  Bxd3 {[%clk 0:01:10]} 28. Qxd3 {[%clk 0:00:45]}  Qg4 {[%clk 0:01:10]} 29. Rf2 {[%clk 0:00:32]}  Nb6 {[%clk 0:01:00]} 30. Qb5 {[%clk 0:00:28]}  Rc3 {[%clk 0:00:55]} 31. Nxa5 {[%clk 0:00:20]}  Bxa5 {[%clk 0:00:47]} 32. Qxa5 {[%clk 0:00:20]}  Qxd4 {[%clk 0:00:47]} 33. Rf1 {[%clk 0:00:17]}  Rc2 {[%clk 0:00:36]} 34. Qe1 {[%clk 0:00:15]}  Rxf2 {[%clk 0:00:28]} 35. Qxf2 {[%clk 0:00:14]}  Qxf2+ {[%clk 0:00:26]} 36. Kxf2 {[%clk 0:00:14]}  Nxa4 {[%clk 0:00:19]} 37. Bxd5 {[%clk 0:00:13]}  Nc5 {[%clk 0:00:19]} 38. Ke3 {[%clk 0:00:09]}  Ne6 {[%clk 0:00:19]} 39. Bxe6 {[%clk 0:00:02]}  fxe6 {[%clk 0:00:20]} 40. Rg1 {[%clk 0:00:02]}  Rf5 {[%clk 0:00:19]} 41. Ke4 {[%clk 0:00:03]}  Kf7 {[%clk 0:00:18]} 42. Rg2 {[%clk 0:00:02]}  g5 {[%clk 0:00:17]} 43. Ra2 {[%clk 0:00:03]}  Rf4+ {[%clk 0:00:15]} 44. Ke3 {[%clk 0:00:03]}  Kg6 {[%clk 0:00:15]} 45. Ra8 {[%clk 0:00:03]}  Kf5 {[%clk 0:00:13]} 46. Rh8 {[%clk 0:00:04]}  Rh4 {[%clk 0:00:13]} 47. Kf3 {[%clk 0:00:03]}  Rxh2 {[%clk 0:00:12]} 48. Kg3 {[%clk 0:00:03]}  Rh4 {[%clk 0:00:12]} 49. Kg2 {[%clk 0:00:04]}  Kxe5 {[%clk 0:00:12]} 50. Kf3 {[%clk 0:00:05]}  h5 {[%clk 0:00:09]} 51. Rg8 {[%clk 0:00:05]}  Rh3+ {[%clk 0:00:08]} 52. Kg2 {[%clk 0:00:06]}  g4 {[%clk 0:00:08]} 53. Rg5+ {[%clk 0:00:06]}  Kf4 {[%clk 0:00:08]} 54. Rg8 {[%clk 0:00:06]}  e5 {[%clk 0:00:09]} 55. Rf8+ {[%clk 0:00:06]}  Ke4 {[%clk 0:00:09]} 56. Re8 {[%clk 0:00:06]}  Rf3 {[%clk 0:00:09]} 57. Rh8 {[%clk 0:00:06]}  Rf5 {[%clk 0:00:10]} 58. Kg3 {[%clk 0:00:05]}  Ke3 {[%clk 0:00:10]} 59. Re8 {[%clk 0:00:05]}  e4 {[%clk 0:00:10]} 60. Rd8 {[%clk 0:00:06]}  Re5 {[%clk 0:00:10]} 61. Kg2 {[%clk 0:00:05]}  h4 {[%clk 0:00:10]} 62. Rh8 {[%clk 0:00:04]}  Kd2 {[%clk 0:00:07]} 63. Rxh4 {[%clk 0:00:03]}  e3 {[%clk 0:00:08]} 64. Rh5 {[%clk 0:00:02]}  Rxh5 {[%clk 0:00:07]} 0-1


[Site "https://www.chess.com"]

[Event "Titled Tuesday Blitz May 9 Early 2023"]
[White "Pranesh M"]
[Black "Taboas Rodriguez, Daniel"]
[WhiteFideId "35028600"]
[BlackFideId "2208466"]
[WhiteElo "2437"]
[BlackElo "2365"]
[Result "1-0"]
[Round "04"]
[TimeControl "180+2"]
[Date "2023.05.09"]
[WhiteClock "0:01:28"]
[BlackClock "0:01:03"]

1. e4 {[%clk 0:03:00]}  e5 {[%clk 0:02:59]} 2. Nf3 {[%clk 0:03:01]}  Nc6 {[%clk 0:03:00]} 3. Bc4 {[%clk 0:03:02]}  Nf6 {[%clk 0:03:00]} 4. Ng5 {[%clk 0:03:02]}  d5 {[%clk 0:03:00]} 5. exd5 {[%clk 0:03:03]}  Na5 {[%clk 0:03:00]} 6. Bb5+ {[%clk 0:03:03]}  Bd7 {[%clk 0:03:00]} 7. Qe2 {[%clk 0:03:02]}  Be7 {[%clk 0:02:59]} 8. Nf3 {[%clk 0:02:59]}  e4 {[%clk 0:02:58]} 9. Ne5 {[%clk 0:02:59]}  c6 {[%clk 0:02:29]} 10. dxc6 {[%clk 0:02:57]}  bxc6 {[%clk 0:02:29]} 11. Nxd7 {[%clk 0:02:55]}  Qxd7 {[%clk 0:02:27]} 12. Ba4 {[%clk 0:02:55]}  O-O {[%clk 0:02:26]} 13. O-O {[%clk 0:02:55]}  Bd6 {[%clk 0:02:22]} 14. h3 {[%clk 0:02:43]}  Rfe8 {[%clk 0:02:21]} 15. a3 {[%clk 0:02:43]}  Bc7 {[%clk 0:02:14]} 16. b4 {[%clk 0:02:38]}  Nb7 {[%clk 0:02:14]} 17. Bb2 {[%clk 0:02:29]}  Qd6 {[%clk 0:02:05]} 18. g3 {[%clk 0:02:29]}  Qe6 {[%clk 0:02:05]} 19. Kg2 {[%clk 0:02:26]}  Nh5 {[%clk 0:02:03]} 20. Qxh5 {[%clk 0:02:23]}  Nd6 {[%clk 0:01:56]} 21. Bb3 {[%clk 0:02:23]}  Qe7 {[%clk 0:01:51]} 22. Nc3 {[%clk 0:02:12]}  g6 {[%clk 0:01:50]} 23. Qe2 {[%clk 0:02:10]}  Kf8 {[%clk 0:01:45]} 24. Rae1 {[%clk 0:02:10]}  f5 {[%clk 0:01:46]} 25. f3 {[%clk 0:01:59]}  Qg5 {[%clk 0:01:46]} 26. Qe3 {[%clk 0:01:49]}  Qh5 {[%clk 0:01:33]} 27. fxe4 {[%clk 0:01:47]}  Re7 {[%clk 0:01:28]} 28. Qd4 {[%clk 0:01:42]}  Nf7 {[%clk 0:01:21]} 29. Bxf7 {[%clk 0:01:36]}  Kxf7 {[%clk 0:01:20]} 30. exf5 {[%clk 0:01:35]}  Rxe1 {[%clk 0:01:18]} 31. fxg6+ {[%clk 0:01:36]}  Kg8 {[%clk 0:01:08]} 32. Qc4+ {[%clk 0:01:34]}  Kg7 {[%clk 0:01:04]} 33. Qf7+ {[%clk 0:01:30]}  Kh6 {[%clk 0:01:04]} 34. Qxh7+ {[%clk 0:01:29]}  Kg5 {[%clk 0:01:05]} 35. Ne4+ {[%clk 0:01:28]}  Rxe4 {[%clk 0:01:03]} 36. Bf6# {[%clk 0:01:28]} 1-0


[Site "https://www.chess.com"]